fUSD/lending_fUSD_20250112
["ID","MTS","AMOUNT","RATE_DAILY","PERIOD"]
[348597705,1736661047705,-557.73,9.997e-05,2]
[348597706,1736661047715,-500.0,9.997e-05,2]
[348597707,1736661047724,-500.0,9.997e-05,2]
[348597708,1736661047733,-1111.03,9.997e-05,2]
[348597709,1736661047743,-533.93142622,9.997e-05,2]
[348597710,1736661047751,-1627.54,9.997e-05,2]
[348597711,1736661047761,-500.0,9.997e-05,2]
[348597712,1736661047770,-500.0,9.998e-05,2]
[348597713,1736661047780,-551.99,9.998e-05,2]
[348597714,1736661047789,-500.0,9.998e-05,2]
[348597715,1736661047798,-696.39,9.998e-05,2]
[348597716,1736661047807,-500.0,9.998e-05,2]
[348597717,1736661047816,-686.76,9.998e-05,2]
[348597718,1736661047825,-563.26,9.998e-05,2]
[348597719,1736661047834,-500.0,9.998e-05,2]
[348597720,1736661047843,-795.41,9.998e-05,2]
[348597721,1736661047853,-500.0,9.998e-05,2]
[348597722,1736661047862,-500.0,9.998e-05,2]
[348597723,1736661047871,-500.0,9.998e-05,2]
[348597724,1736661047880,-500.0,9.998e-05,2]
[348597725,1736661047890,-919.68,9.998e-05,2]
[348597726,1736661047899,-503.48,9.998e-05,2]
[348597727,1736661047908,-836.72,9.998e-05,2]
[348597728,1736661047918,-500.0,9.998e-05,2]
[348597729,1736661047927,-939.77,9.998e-05,2]
[348597730,1736661047935,-500.0,9.998e-05,2]
[348597731,1736661047944,-500.0,9.998e-05,2]
[348597732,1736661047953,-637.47,9.998e-05,2]
[348597733,1736661047962,-500.0,9.998e-05,2]
[348597734,1736661047972,-500.0,9.998e-05,2]
[348597735,1736661047982,-150.0,9.998e-05,2]
[348597736,1736661047991,-2991.8,9.999e-05,2]
[348597737,1736661048001,-500.0,9.999e-05,2]
[348597738,1736661048010,-1388.3,9.999e-05,2]
[348597739,1736661048019,-3843.19,9.999e-05,2]
[348597740,1736661048029,-974.31,9.999e-05,2]
[348597741,1736661048039,-1009.11,9.999e-05,2]
[348597742,1736661048049,-1349.61,9.999e-05,2]
[348597743,1736661048058,-1490.63,9.999e-05,2]
[348597744,1736661048067,-1931.91,9.999e-05,2]
[348597745,1736661048077,-3225.13,9.999e-05,2]
[348597746,1736661048086,-500.0,9.999e-05,2]
[348597747,1736661048096,-500.0,9.999e-05,2]
[348597748,1736661048105,-1463.06,9.999e-05,2]
[348597749,1736661048115,-1098.99,9.999e-05,2]
[348597750,1736661048124,-3760.86,9.999e-05,2]
[348597751,1736661048137,-542.21,9.999e-05,2]
[348597752,1736661048147,-1629.11,9.999e-05,2]
[348597753,1736661048157,-1475.91,9.999e-05,2]
[348597754,1736661048167,-1578.88,9.999e-05,2]
[348597755,1736661048176,-1195.78,9.999e-05,2]
[348597756,1736661048186,-698.52,9.999e-05,2]
[348597757,1736661048195,-500.0,9.999e-05,2]
[348597758,1736661048205,-500.0,9.999e-05,2]
[348597759,1736661048214,-769.75,9.999e-05,2]
[348597760,1736661048225,-1219.45,9.999e-05,2]
[348597761,1736661048234,-981.31,9.999e-05,2]
[348597762,1736661048243,-1488.38,9.999e-05,2]
[348597763,1736661048252,-2164.53,9.999e-05,2]
[348597764,1736661048262,-881.98,9.999e-05,2]
[348597765,1736661048272,-2496.12,9.999e-05,2]
[348597766,1736661048281,-1475.43,9.999e-05,2]
[348597767,1736661048291,-843.89,9.999e-05,2]
[348597768,1736661048300,-2908.3,9.999e-05,2]
[348597769,1736661048310,-256.27298363,9.999e-05,2]
[348597770,1736661048319,-635.0,9.999e-05,2]
[348597771,1736661048329,-150.0,9.999e-05,2]
[348597772,1736661048338,-566.0,9.999e-05,2]
[348597773,1736661048348,-150.0,9.999e-05,2]
[348597774,1736661048357,-150.0,9.999e-05,2]
[348597775,1736661048367,-551.0,0.0001,2]
[348597776,1736661048376,-19853.68238481,0.0001,2]
[348597778,1736661501120,400.0,8.219e-05,2]
[348597779,1736661501144,642.19,8.219e-05,2]
[348597782,1736661954963,151.0,0.0002,120]
[348597793,1736662231572,-250.0,8.956e-05,2]
[348597794,1736662231582,-1000.0,8.964e-05,2]
[348597795,1736662231591,-2000.0,9e-05,2]
[348597796,1736662231602,-600.0,9.6e-05,3]
[348597797,1736662231611,-363.07879968,9.604e-05,2]
[348597798,1736662231627,-775.98820032,9.604e-05,2]
[348597799,1736662231636,-1200.0,9.7e-05,3]
[348597800,1736662231646,-2379.703,9.7e-05,2]
[348597801,1736662231656,-150.0,9.737e-05,2]
[348597802,1736662231667,-150.0,9.768e-05,2]
[348597803,1736662231676,-300.0,9.772e-05,2]
[348597804,1736662231686,-151.85889682,9.773e-05,2]
[348597805,1736662231696,-500.0,9.773e-05,2]
[348597806,1736662231707,-150.0,9.78e-05,2]
[348597807,1736662231716,-150.0,9.798e-05,2]
[348597808,1736662231725,-500.0,9.799e-05,2]
[348597809,1736662231735,-500.0,9.799e-05,2]
[348597810,1736662231743,-500.0,9.799e-05,2]
[348597811,1736662231753,-500.0,9.799e-05,2]
[348597812,1736662231762,-500.0,9.799e-05,2]
[348597813,1736662231771,-500.0,9.799e-05,2]
[348597814,1736662231780,-561.21,9.799e-05,2]
[348597815,1736662231790,-500.0,9.799e-05,2]
[348597816,1736662231799,-500.0,9.799e-05,2]
[348597817,1736662231808,-500.0,9.799e-05,2]
[348597818,1736662231817,-500.0,9.799e-05,2]
[348597819,1736662231826,-500.0,9.799e-05,2]
[348597820,1736662231837,-929.93,9.799e-05,2]
[348597821,1736662231846,-500.0,9.799e-05,2]
[348597822,1736662231856,-332.55788638,9.799e-05,2]
[348597823,1736662231865,-723.96,9.799e-05,2]
[348597824,1736662231874,-806.14,9.799e-05,2]
[348597825,1736662231883,-390.87040514,9.799e-05,2]
[348597826,1736662231895,-218.23959486,9.799e-05,2]
[348597827,1736662231904,-526.84,9.799e-05,2]
[348597828,1736662232125,-500.0,9.799e-05,2]
[348597829,1736662232136,-500.0,9.799e-05,2]
[348597830,1736662232146,-500.0,9.799e-05,2]
[348597831,1736662232155,-81.57326668,9.799e-05,2]
[348597832,1736662235314,-418.42673332,9.799e-05,2]
[348597833,1736662235324,-500.0,9.799e-05,2]
[348597834,1736662235335,-500.0,9.799e-05,2]
[348597835,1736662235345,-609.96,9.799e-05,2]
[348597836,1736662235354,-500.0,9.799e-05,2]
[348597837,1736662235363,-500.0,9.799e-05,2]
[348597838,1736662235373,-500.0,9.799e-05,2]
[348597839,1736662235382,-297.66326668,9.799e-05,2]
[348597840,1736662235394,-202.33673332,9.799e-05,2]
[348597841,1736662235403,-345.27170693,9.799e-05,2]
[348597842,1736662235415,-154.72829307,9.799e-05,2]
[348597843,1736662235425,-321.74224527,9.799e-05,2]
[348597844,1736662235442,-506.46775473,9.799e-05,2]
[348597845,1736662235452,-682.21,9.799e-05,2]
[348597846,1736662235462,-765.31,9.799e-05,2]
[348597847,1736662235471,-206.59204808,9.799e-05,2]
[348597848,1736662235553,-293.40795192,9.799e-05,2]
[348597849,1736662235563,-500.0,9.799e-05,2]
[348597850,1736662235572,-500.0,9.799e-05,2]
[348597851,1736662235582,-500.0,9.799e-05,2]
[348597852,1736662235592,-500.0,9.799e-05,2]
[348597853,1736662235602,-500.0,9.799e-05,2]
[348597854,1736662235611,-500.0,9.799e-05,2]
[348597855,1736662235621,-500.0,9.799e-05,2]
[348597856,1736662235630,-500.0,9.799e-05,2]
[348597857,1736662235640,-500.0,9.799e-05,2]
[348597858,1736662235649,-64.8824756,9.799e-05,2]
[348597859,1736662235661,-435.1175244,9.799e-05,2]
[348597860,1736662235671,-500.0,9.799e-05,2]
[348597861,1736662235681,-806.87,9.799e-05,2]
[348597862,1736662235690,-500.0,9.799e-05,2]
[348597863,1736662235700,-223.49066569,9.799e-05,2]
[348597864,1736662235727,-276.50933431,9.799e-05,2]
[348597865,1736662235736,-375.56,9.799e-05,2]
[348597866,1736662235747,-247.93066569,9.799e-05,2]
[348597867,1736662235759,-252.06933431,9.799e-05,2]
[348597868,1736662235768,-518.48,9.799e-05,2]
[348597869,1736662235778,-129.45066569,9.799e-05,2]
[348597870,1736662237453,-370.54933431,9.799e-05,2]
[348597871,1736662237462,-212.59066569,9.799e-05,2]
[348597872,1736662237474,-287.40933431,9.799e-05,2]
[348597873,1736662237483,-500.0,9.799e-05,2]
[348597874,1736662237492,-46.28650442,9.799e-05,2]
[348597875,1736662237504,-453.71349558,9.799e-05,2]
[348597876,1736662237514,-500.0,9.799e-05,2]
[348597877,1736662237523,-385.21506558,9.799e-05,2]
[348597878,1736662237532,-500.0,9.799e-05,2]
[348597879,1736662237541,-14.36192348,9.799e-05,2]
[348597880,1736662237552,-358.16823312,9.799e-05,2]
[348597881,1736662237564,-484.8598434,9.799e-05,2]
[348597882,1736662237573,-285.10458813,9.799e-05,2]
[348597883,1736662237583,-414.04008287,9.799e-05,2]
[348597884,1736662237601,-95.835329,9.799e-05,2]
[348597885,1736662237610,-500.0,9.799e-05,2]
[348597886,1736662237619,-432.06531809,9.799e-05,2]
[348597887,1736662237630,-164.36468191,9.799e-05,2]
[348597888,1736662237639,-297.75531409,9.799e-05,2]
[348597889,1736662237657,-202.24468591,9.799e-05,2]
[348597890,1736662237666,-500.0,9.799e-05,2]
[348597891,1736662237676,-500.0,9.799e-05,2]
[348597892,1736662237685,-500.0,9.799e-05,2]
[348597893,1736662237694,-500.0,9.799e-05,2]
[348597894,1736662237703,-885.69,9.799e-05,2]
[348597895,1736662237712,-500.0,9.799e-05,2]
[348597896,1736662237721,-500.0,9.799e-05,2]
[348597897,1736662237730,-500.0,9.799e-05,2]
[348597898,1736662237739,-255.54597797,9.799e-05,2]
[348597899,1736662237751,-244.45402203,9.799e-05,2]
[348597900,1736662237760,-500.0,9.799e-05,2]
[348597901,1736662237769,-1494.74,9.799e-05,2]
[348597902,1736662237778,-248.16773717,9.799e-05,2]
[348597903,1736662237806,-251.83226283,9.799e-05,2]
[348597904,1736662237815,-500.0,9.799e-05,2]
[348597905,1736662237825,-500.0,9.799e-05,2]
[348597906,1736662237835,-958.459782,9.799e-05,2]
[348597907,1736662237857,-1333.340218,9.799e-05,2]
[348597908,1736662237867,-137.749782,9.799e-05,2]
[348597909,1736662237879,-355.72,9.799e-05,2]
[348597910,1736662239650,-6.530218,9.799e-05,2]
[348597911,1736662239660,-637.62675114,9.799e-05,2]
[348597912,1736662239672,-118.20324886,9.799e-05,2]
[348597913,1736662239682,-500.0,9.799e-05,2]
[348597914,1736662239692,-510.90377678,9.799e-05,2]
[348597915,1736662239701,-500.0,9.799e-05,2]
[348597916,1736662239711,-1491.11,9.799e-05,2]
[348597917,1736662239720,-500.0,9.799e-05,2]
[348597918,1736662239729,-500.0,9.799e-05,2]
[348597919,1736662239739,-500.0,9.799e-05,2]
[348597920,1736662239748,-500.0,9.799e-05,2]
[348597921,1736662239758,-684.62,9.799e-05,2]
[348597922,1736662239767,-706.11,9.799e-05,2]
[348597923,1736662239776,-500.0,9.799e-05,2]
[348597924,1736662239786,-500.0,9.799e-05,2]
[348597925,1736662239796,-649.6,9.799e-05,2]
[348597926,1736662239806,-500.0,9.799e-05,2]
[348597929,1736662240016,-505.27925976,9.799e-05,2]
[348597930,1736662240025,-3742.423122,9.799e-05,2]
[348597931,1736662240036,-500.0,9.799e-05,2]
[348597932,1736662240046,-278.76766914,9.799e-05,2]
[348597933,1736662240055,-790.69,9.799e-05,2]
[348597934,1736662240064,-1115.45,9.799e-05,2]
[348597935,1736662240074,-500.0,9.799e-05,2]
[348597936,1736662240083,-868.16,9.799e-05,2]
[348597937,1736662240092,-500.0,9.799e-05,2]
[348597938,1736662240101,-500.0,9.799e-05,2]
[348597939,1736662240111,-3002.73,9.799e-05,2]
[348597940,1736662240120,-4474.233529,9.799e-05,2]
[348597941,1736662240129,-597.83,9.799e-05,2]
[348597942,1736662240139,-500.0,9.799e-05,2]
[348597943,1736662240148,-158.652707,9.799e-05,2]
[348597944,1736662240158,-1234.64,9.799e-05,2]
[348597945,1736662240167,-500.0,9.799e-05,2]
[348597946,1736662240178,-761.78,9.799e-05,2]
[348597947,1736662240188,-156.984396,9.799e-05,2]
[348597948,1736662240197,-500.0,9.799e-05,2]
[348597949,1736662240206,-500.0,9.799e-05,2]
[348597950,1736662240215,-2672.94,9.799e-05,2]
[348597951,1736662240225,-500.0,9.799e-05,2]
[348597952,1736662240234,-1281.67,9.799e-05,2]
[348597953,1736662240244,-676.45,9.799e-05,2]
[348597954,1736662240254,-6369.29,9.799e-05,2]
[348597955,1736662240263,-500.0,9.799e-05,2]
[348597956,1736662240273,-500.0,9.799e-05,2]
[348597957,1736662240282,-500.0,9.799e-05,2]
[348597958,1736662240293,-500.0,9.799e-05,2]
[348597959,1736662240302,-500.0,9.799e-05,2]
[348597960,1736662240312,-3192.95,9.799e-05,2]
[348597961,1736662240322,-613.06,9.799e-05,2]
[348597962,1736662240331,-736.35,9.799e-05,2]
[348597963,1736662240340,-500.0,9.799e-05,2]
[348597964,1736662240350,-500.0,9.799e-05,2]
[348597965,1736662240362,-1575.64,9.799e-05,2]
[348597966,1736662240372,-925.64,9.799e-05,2]
[348597967,1736662240381,-500.0,9.799e-05,2]
[348597968,1736662240391,-1083.05,9.799e-05,2]
[348597969,1736662240400,-836.14,9.799e-05,2]
[348597970,1736662240409,-500.0,9.799e-05,2]
[348597971,1736662240419,-859.35,9.799e-05,2]
[348597972,1736662240428,-500.0,9.799e-05,2]
[348597973,1736662240437,-500.0,9.799e-05,2]
[348597974,1736662240447,-2004.1,9.799e-05,2]
[348597975,1736662240456,-2074.81,9.799e-05,2]
[348597976,1736662240465,-500.0,9.799e-05,2]
[348597977,1736662240474,-1127.64,9.799e-05,2]
[348597978,1736662240483,-500.0,9.799e-05,2]
[348597979,1736662240492,-500.0,9.799e-05,2]
[348597980,1736662240502,-500.0,9.799e-05,2]
[348597981,1736662240511,-1474.44,9.799e-05,2]
[348597982,1736662240521,-4043.57,9.799e-05,2]
[348597983,1736662240531,-3027.89,9.799e-05,2]
[348597984,1736662240540,-500.0,9.799e-05,2]
[348597985,1736662240550,-500.0,9.799e-05,2]
[348597986,1736662240559,-1837.14,9.799e-05,2]
[348597987,1736662240569,-835.68,9.799e-05,2]
[348597988,1736662240578,-500.0,9.799e-05,2]
[348597989,1736662240588,-3793.27,9.799e-05,2]
[348597990,1736662240597,-588.68,9.799e-05,2]
[348597991,1736662240607,-500.0,9.799e-05,2]
[348597992,1736662240617,-500.0,9.799e-05,2]
[348597993,1736662240626,-1069.84,9.799e-05,2]
[348597994,1736662240636,-1189.2,9.799e-05,2]
[348597995,1736662240645,-331.29396821,9.799e-05,2]
[348597996,1736662240655,-572.2,9.799e-05,2]
[348597997,1736662240665,-3131.27,9.799e-05,2]
[348597998,1736662240676,-500.0,9.799e-05,2]
[348597999,1736662240686,-500.0,9.799e-05,2]
[348598000,1736662240695,-787.66,9.799e-05,2]
[348598001,1736662240704,-500.0,9.799e-05,2]
[348598002,1736662240716,-500.0,9.799e-05,2]
[348598003,1736662240726,-500.0,9.799e-05,2]
[348598004,1736662240735,-2336.16,9.799e-05,2]
[348598005,1736662240744,-500.0,9.799e-05,2]
[348598006,1736662240754,-500.0,9.799e-05,2]
[348598007,1736662240763,-1064.73,9.799e-05,2]
[348598008,1736662240772,-500.0,9.799e-05,2]
[348598009,1736662240782,-1874.0,9.799e-05,2]
[348598010,1736662240791,-500.0,9.799e-05,2]
[348598011,1736662240801,-500.0,9.799e-05,2]
[348598012,1736662240810,-500.0,9.799e-05,2]
[348598013,1736662240820,-1131.86,9.799e-05,2]
[348598014,1736662240834,-574.44,9.799e-05,2]
[348598015,1736662240844,-500.0,9.799e-05,2]
[348598016,1736662240853,-558.12,9.799e-05,2]
[348598017,1736662240862,-500.0,9.799e-05,2]
[348598018,1736662240873,-900.66,9.799e-05,2]
[348598019,1736662240882,-500.0,9.799e-05,2]
[348598020,1736662240892,-500.0,9.799e-05,2]
[348598021,1736662240901,-500.0,9.799e-05,2]
[348598022,1736662240911,-749.15,9.799e-05,2]
[348598023,1736662240920,-500.0,9.799e-05,2]
[348598024,1736662240929,-525.92,9.799e-05,2]
[348598025,1736662240938,-500.0,9.799e-05,2]
[348598026,1736662240948,-2654.55,9.799e-05,2]
[348598027,1736662240961,-741.0,9.799e-05,2]
[348598028,1736662240970,-500.0,9.799e-05,2]
[348598029,1736662240979,-2013.2,9.799e-05,2]
[348598030,1736662240989,-1427.3,9.799e-05,2]
[348598031,1736662240999,-500.0,9.799e-05,2]
[348598032,1736662241008,-657.0,9.799e-05,2]
[348598033,1736662241018,-3194.49,9.799e-05,2]
[348598034,1736662241028,-500.0,9.799e-05,2]
[348598035,1736662241037,-537.82,9.799e-05,2]
[348598036,1736662241046,-83468.05515363,9.8e-05,2]
[348598037,1736662241079,-801.22099965,9.8e-05,2]
[348598038,1736662241090,-999.58,9.8e-05,2]
[348598039,1736662241103,-463.84846,9.8e-05,2]
[348598040,1736662241114,-9907.88971123,9.8e-05,2]
[348598044,1736662242578,-684.46,9.799e-05,2]
[348598045,1736662242588,-831.99,9.799e-05,2]
[348598046,1736662242598,-225494.83404716,9.8e-05,2]
[348598047,1736662242688,-699.5899999,9.8e-05,2]
[348598048,1736662242699,-424.49932413,9.8e-05,2]
[348598049,1736662242710,-2721.28325512,9.8e-05,2]
[348598050,1736662242745,-500.57827625,9.8e-05,2]
[348598051,1736662242756,-3953.81927455,9.8e-05,2]
[348598055,1736662245557,-500.0,9.799e-05,2]
[348598056,1736662245568,-361.15175065,9.799e-05,2]
[348598057,1736662245841,-138.84824935,9.799e-05,2]
[348598058,1736662245849,-500.0,9.799e-05,2]
[348598059,1736662245860,-500.0,9.799e-05,2]
[348598060,1736662245869,-3503.52370639,9.8e-05,2]
[348598061,1736662245948,-1199.4,9.8e-05,2]
[348598062,1736662245959,-57517.98365735,9.8e-05,2]
[348598063,1736662245993,-1138.28203649,9.8e-05,2]
[348598064,1736662246011,-8030.57012568,9.8e-05,2]
[348598066,1736662713211,990.08,8.219e-05,2]
[348598091,1736663431780,-276.16,8.797e-05,2]
[348598092,1736663431789,-326.1444,8.81e-05,2]
[348598093,1736663431798,-825.01,8.837e-05,2]
[348598094,1736663431807,-662.54,8.848e-05,2]
[348598095,1736663431816,-1303.94673169,8.881e-05,2]
[348598096,1736663431825,-300.0,8.881e-05,2]
[348598097,1736663431834,-1680.04259066,8.91e-05,2]
[348598098,1736663431847,-366.03,8.91e-05,2]
[348598099,1736663431857,-788.5,8.91e-05,2]
[348598100,1736663431868,-503.1,8.91e-05,2]
[348598101,1736663432095,-300.0,8.91e-05,2]
[348598102,1736663432110,-522.63906166,8.91e-05,2]
[348598103,1736663432121,-282.86834768,8.91e-05,2]
[348598104,1736663432130,-300.0,8.918e-05,2]
[348598105,1736663432141,-300.0,8.918e-05,2]
[348598106,1736663432150,-109.97165232,8.919e-05,2]
[348598107,1736663432161,-271.44857917,8.919e-05,2]
[348598112,1736663432204,-618.57976851,8.919e-05,2]
[348598114,1736663432213,-1384.16,8.919e-05,2]
[348598116,1736663432222,-250.0,8.919e-05,2]
[348598118,1736663432231,-250.0,8.952e-05,2]
[348598120,1736663432241,-224.36,9.031e-05,2]
[348598122,1736663432250,-875.08,9.048e-05,2]
[348598124,1736663432259,-150.0,9.078e-05,2]
[348598126,1736663432268,-832.89,9.094e-05,2]
[348598127,1736663432279,-1002.69179544,9.157e-05,2]
[348598129,1736663432288,-1800.0,9.6e-05,3]
[348598131,1736663432297,-3600.0,9.7e-05,3]
[348598133,1736663432307,-150.0,9.791e-05,2]
[348598135,1736663432316,-150.0,9.798e-05,2]
[348598136,1736663432327,-500.0,9.798e-05,2]
[348598137,1736663432337,-1546.68,9.799e-05,2]
[348598138,1736663432346,-1104.31,9.799e-05,2]
[348598139,1736663432355,-623.737187,9.799e-05,2]
[348598141,1736663432365,-745.705588,9.799e-05,2]
[348598142,1736663432375,-3059.91,9.799e-05,2]
[348598143,1736663432385,-1111.65,9.799e-05,2]
[348598144,1736663432394,-588.22,9.799e-05,2]
[348598145,1736663432404,-500.0,9.799e-05,2]
[348598146,1736663432415,-500.0,9.799e-05,2]
[348598147,1736663432426,-3160.8,9.799e-05,2]
[348598148,1736663432435,-500.0,9.799e-05,2]
[348598149,1736663432445,-500.0,9.799e-05,2]
[348598150,1736663432455,-500.0,9.799e-05,2]
[348598151,1736663432465,-500.0,9.799e-05,2]
[348598152,1736663432475,-500.0,9.799e-05,2]
[348598153,1736663432485,-500.0,9.799e-05,2]
[348598154,1736663432494,-500.0,9.799e-05,2]
[348598155,1736663432505,-1085.23,9.799e-05,2]
[348598156,1736663432517,-500.0,9.799e-05,2]
[348598157,1736663432526,-400.42373724,9.799e-05,2]
[348598158,1736663432538,-99.57626276,9.799e-05,2]
[348598159,1736663432547,-318.40400062,9.799e-05,2]
[348598167,1736663437764,-181.59599938,9.799e-05,2]
[348598168,1736663437773,-436.89844417,9.799e-05,2]
[348598169,1736663437784,-104.43155583,9.799e-05,2]
[348598170,1736663437794,-500.0,9.799e-05,2]
[348598171,1736663437804,-500.0,9.799e-05,2]
[348598172,1736663437813,-173.03879367,9.799e-05,2]
[348598173,1736663437840,-326.96120633,9.799e-05,2]
[348598174,1736663437850,-500.0,9.799e-05,2]
[348598175,1736663437860,-500.0,9.799e-05,2]
[348598176,1736663437870,-1192.28,9.799e-05,2]
[348598177,1736663437881,-500.0,9.799e-05,2]
[348598178,1736663437891,-775.14403524,9.799e-05,2]
[348598179,1736663437978,-438.63596476,9.799e-05,2]
[348598181,1736663437988,-662.67,9.799e-05,2]
[348598184,1736663437997,-500.0,9.799e-05,2]
[348598186,1736663438007,-500.0,9.799e-05,2]
[348598188,1736663438016,-863.13,9.799e-05,2]
[348598190,1736663438025,-36.36461851,9.799e-05,2]
[348598198,1736663439948,-603.62538149,9.799e-05,2]
[348598199,1736663439958,-1478.64,9.799e-05,2]
[348598200,1736663439967,-500.0,9.799e-05,2]
[348598201,1736663439976,-710.12,9.799e-05,2]
[348598202,1736663439989,-500.0,9.799e-05,2]
[348598203,1736663439998,-641.23,9.799e-05,2]
[348598204,1736663440008,-500.0,9.799e-05,2]
[348598205,1736663440018,-500.0,9.799e-05,2]
[348598206,1736663440028,-500.0,9.799e-05,2]
[348598207,1736663440038,-753.23,9.799e-05,2]
[348598208,1736663440049,-500.0,9.799e-05,2]
[348598209,1736663440059,-331.41398949,9.799e-05,2]
[348598210,1736663440068,-515.41,9.799e-05,2]
[348598211,1736663440077,-508.41,9.799e-05,2]
[348598212,1736663440086,-771.51,9.799e-05,2]
[348598213,1736663440095,-500.0,9.799e-05,2]
[348598214,1736663440104,-500.0,9.799e-05,2]
[348598215,1736663440113,-1011.15,9.799e-05,2]
[348598216,1736663440123,-500.0,9.799e-05,2]
[348598217,1736663440132,-891.18,9.799e-05,2]
[348598218,1736663440141,-583.73,9.799e-05,2]
[348598219,1736663440151,-146.15653227,9.799e-05,2]
[348598220,1736663440177,-547.64346773,9.799e-05,2]
[348598221,1736663440186,-229.48573116,9.799e-05,2]
[348598222,1736663440197,-341.17426884,9.799e-05,2]
[348598223,1736663440207,-500.0,9.799e-05,2]
[348598224,1736663440215,-557.25791004,9.799e-05,2]
[348598230,1736663442826,-500.0,9.798e-05,2]
[348598231,1736663442836,-215.29208996,9.799e-05,2]
[348598232,1736663442845,-500.0,9.799e-05,2]
[348598233,1736663442855,-500.0,9.799e-05,2]
[348598234,1736663442865,-708.83,9.799e-05,2]
[348598235,1736663442875,-500.0,9.799e-05,2]
[348598236,1736663442884,-500.0,9.799e-05,2]
[348598237,1736663442894,-692.85,9.799e-05,2]
[348598238,1736663442903,-500.0,9.799e-05,2]
[348598239,1736663442912,-500.0,9.799e-05,2]
[348598240,1736663442922,-500.0,9.799e-05,2]
[348598241,1736663442931,-500.0,9.799e-05,2]
[348598242,1736663442939,-500.0,9.799e-05,2]
[348598243,1736663442948,-520.22,9.799e-05,2]
[348598244,1736663442957,-500.0,9.799e-05,2]
[348598245,1736663442966,-500.0,9.799e-05,2]
[348598246,1736663442975,-2392.11,9.799e-05,2]
[348598247,1736663442984,-584.54,9.799e-05,2]
[348598248,1736663442994,-714.91,9.799e-05,2]
[348598249,1736663443003,-500.0,9.799e-05,2]
[348598250,1736663443012,-733.42,9.799e-05,2]
[348598251,1736663443021,-500.0,9.799e-05,2]
[348598252,1736663443030,-581.46,9.799e-05,2]
[348598253,1736663443039,-500.0,9.799e-05,2]
[348598254,1736663443049,-224.38112542,9.799e-05,2]
[348598255,1736663443061,-569.31887458,9.799e-05,2]
[348598256,1736663443069,-72.96323819,9.799e-05,2]
[348598257,1736663443081,-427.03676181,9.799e-05,2]
[348598258,1736663443090,-500.0,9.799e-05,2]
[348598259,1736663443099,-307.64763017,9.799e-05,2]
[348598260,1736663443110,-342.08199988,9.799e-05,2]
[348598261,1736663443121,-764.22036995,9.799e-05,2]
[348598262,1736663443131,-509.67,9.799e-05,2]
[348598263,1736663443141,-653.78,9.799e-05,2]
[348598264,1736663443152,-179.43007261,9.799e-05,2]
[348598265,1736663443181,-320.56992739,9.799e-05,2]
[348598266,1736663443191,-500.0,9.799e-05,2]
[348598267,1736663443200,-500.0,9.799e-05,2]
[348598268,1736663443209,-815.6,9.799e-05,2]
[348598269,1736663443218,-500.0,9.799e-05,2]
[348598270,1736663443227,-500.0,9.799e-05,2]
[348598271,1736663443237,-493.97568165,9.799e-05,2]
[348598272,1736663443249,-6.02431835,9.799e-05,2]
[348598273,1736663443257,-373.47568665,9.799e-05,2]
[348598274,1736663446049,-385.0,9.798e-05,2]
[348598275,1736663446086,-115.0,9.798e-05,2]
[348598276,1736663446095,-200.5451,9.799e-05,2]
[348598277,1736663446108,-166.49921335,9.799e-05,2]
[348598278,1736663446118,-500.0,9.799e-05,2]
[348598279,1736663446129,-2787.13,9.799e-05,2]
[348598280,1736663446139,-500.0,9.799e-05,2]
[348598281,1736663446148,-500.0,9.799e-05,2]
[348598282,1736663446157,-500.0,9.799e-05,2]
[348598283,1736663446166,-500.0,9.799e-05,2]
[348598284,1736663446175,-500.0,9.799e-05,2]
[348598285,1736663446186,-576.64,9.799e-05,2]
[348598286,1736663446195,-773.25,9.799e-05,2]
[348598287,1736663446205,-500.0,9.799e-05,2]
[348598288,1736663446214,-500.0,9.799e-05,2]
[348598289,1736663446223,-2954.56,9.799e-05,2]
[348598290,1736663446232,-500.0,9.799e-05,2]
[348598291,1736663446241,-761.85,9.799e-05,2]